{"text_format":"1","workbook":"xlsx","n_sheets":2,"sheets":["NoteList","JustList"],"not_rendered":{"charts":0,"images":0,"macros":1,"external_links":0,"defined_names":3,"comments":0,"pivot_tables":0},"unopened":[],"bounds":{"document_bytes":16777216,"sheet_cells":100000,"rows_first":2000,"rows_last":500,"rows_between":2000,"halvings":0,"cell_chars":16384,"cell_head_chars":4096},"cells_cut":0,"cells_raw":0,"read":"whole","date_system":"1900"}

{"sheet":"NoteList","index":0,"n_rows":8,"n_cols":4,"rows_kept":8,"cut":false,"hidden":false,"merged":[[1,3,7,3]]}
[null,"Filter out:"]
[null,"R:\\Active clients\\",null,"Go to the TDN client.\nGo to File Explorer; address \"R:\\Active clients\"\nClick \"Ctrl\" & \"A\" to select all records\nHold Shift down & right click mouse.\nSelect \"Copy as Path\"\nCome back here & click the \"Paste\" button in the top left."]
[]
[]
[]
[]
[]
["Name","Notes"]

{"sheet":"JustList","index":1,"n_rows":101,"n_cols":6,"rows_kept":101,"cut":false,"hidden":false,"merged":[]}
[{"$f":"IF(INDIRECT(F1)=\"\",\"\",INDIRECT(F1))","v":""},{"$f":"IF(INDIRECT(F26)=\"\",\"\",INDIRECT(F26))","v":""},{"$f":"IF(INDIRECT(F49)=\"\",\"\",INDIRECT(F49))","v":""},{"$f":"IF(INDIRECT(F76)=\"\",\"\",INDIRECT(F76))","v":""},null,"NoteList!A9"]
[{"$f":"IF(INDIRECT(F2)=\"\",\"\",INDIRECT(F2))","v":""},{"$f":"IF(INDIRECT(F27)=\"\",\"\",INDIRECT(F27))","v":""},{"$f":"IF(INDIRECT(F50)=\"\",\"\",INDIRECT(F50))","v":""},{"$f":"IF(INDIRECT(F77)=\"\",\"\",INDIRECT(F77))","v":""},null,"NoteList!A10"]
[{"$f":"IF(INDIRECT(F3)=\"\",\"\",INDIRECT(F3))","v":""},{"$f":"IF(INDIRECT(F28)=\"\",\"\",INDIRECT(F28))","v":""},{"$f":"IF(INDIRECT(F51)=\"\",\"\",INDIRECT(F51))","v":""},{"$f":"IF(INDIRECT(F78)=\"\",\"\",INDIRECT(F78))","v":""},null,"NoteList!A11"]
[{"$f":"IF(INDIRECT(F4)=\"\",\"\",INDIRECT(F4))","v":""},{"$f":"IF(INDIRECT(F29)=\"\",\"\",INDIRECT(F29))","v":""},{"$f":"IF(INDIRECT(F52)=\"\",\"\",INDIRECT(F52))","v":""},{"$f":"IF(INDIRECT(F79)=\"\",\"\",INDIRECT(F79))","v":""},null,"NoteList!A12"]
[{"$f":"IF(INDIRECT(F5)=\"\",\"\",INDIRECT(F5))","v":""},{"$f":"IF(INDIRECT(F30)=\"\",\"\",INDIRECT(F30))","v":""},{"$f":"IF(INDIRECT(F51)=\"\",\"\",INDIRECT(F51))","v":""},{"$f":"IF(INDIRECT(F80)=\"\",\"\",INDIRECT(F80))","v":""},null,"NoteList!A13"]
[{"$f":"IF(INDIRECT(F6)=\"\",\"\",INDIRECT(F6))","v":""},{"$f":"IF(INDIRECT(F31)=\"\",\"\",INDIRECT(F31))","v":""},{"$f":"IF(INDIRECT(F52)=\"\",\"\",INDIRECT(F52))","v":""},{"$f":"IF(INDIRECT(F81)=\"\",\"\",INDIRECT(F81))","v":""},null,"NoteList!A14"]
[{"$f":"IF(INDIRECT(F7)=\"\",\"\",INDIRECT(F7))","v":""},{"$f":"IF(INDIRECT(F32)=\"\",\"\",INDIRECT(F32))","v":""},{"$f":"IF(INDIRECT(F53)=\"\",\"\",INDIRECT(F53))","v":""},{"$f":"IF(INDIRECT(F82)=\"\",\"\",INDIRECT(F82))","v":""},null,"NoteList!A15"]
[{"$f":"IF(INDIRECT(F8)=\"\",\"\",INDIRECT(F8))","v":""},{"$f":"IF(INDIRECT(F33)=\"\",\"\",INDIRECT(F33))","v":""},{"$f":"IF(INDIRECT(F54)=\"\",\"\",INDIRECT(F54))","v":""},{"$f":"IF(INDIRECT(F83)=\"\",\"\",INDIRECT(F83))","v":""},null,"NoteList!A16"]
[{"$f":"IF(INDIRECT(F9)=\"\",\"\",INDIRECT(F9))","v":""},{"$f":"IF(INDIRECT(F34)=\"\",\"\",INDIRECT(F34))","v":""},{"$f":"IF(INDIRECT(F55)=\"\",\"\",INDIRECT(F55))","v":""},{"$f":"IF(INDIRECT(F84)=\"\",\"\",INDIRECT(F84))","v":""},null,"NoteList!A17"]
[{"$f":"IF(INDIRECT(F10)=\"\",\"\",INDIRECT(F10))","v":""},{"$f":"IF(INDIRECT(F35)=\"\",\"\",INDIRECT(F35))","v":""},{"$f":"IF(INDIRECT(F56)=\"\",\"\",INDIRECT(F56))","v":""},{"$f":"IF(INDIRECT(F85)=\"\",\"\",INDIRECT(F85))","v":""},null,"NoteList!A18"]
[{"$f":"IF(INDIRECT(F11)=\"\",\"\",INDIRECT(F11))","v":""},{"$f":"IF(INDIRECT(F36)=\"\",\"\",INDIRECT(F36))","v":""},{"$f":"IF(INDIRECT(F57)=\"\",\"\",INDIRECT(F57))","v":""},{"$f":"IF(INDIRECT(F86)=\"\",\"\",INDIRECT(F86))","v":""},null,"NoteList!A19"]
[{"$f":"IF(INDIRECT(F12)=\"\",\"\",INDIRECT(F12))","v":""},{"$f":"IF(INDIRECT(F37)=\"\",\"\",INDIRECT(F37))","v":""},{"$f":"IF(INDIRECT(F58)=\"\",\"\",INDIRECT(F58))","v":""},{"$f":"IF(INDIRECT(F87)=\"\",\"\",INDIRECT(F87))","v":""},null,"NoteList!A20"]
[{"$f":"IF(INDIRECT(F13)=\"\",\"\",INDIRECT(F13))","v":""},{"$f":"IF(INDIRECT(F38)=\"\",\"\",INDIRECT(F38))","v":""},{"$f":"IF(INDIRECT(F59)=\"\",\"\",INDIRECT(F59))","v":""},{"$f":"IF(INDIRECT(F88)=\"\",\"\",INDIRECT(F88))","v":""},null,"NoteList!A21"]
[{"$f":"IF(INDIRECT(F14)=\"\",\"\",INDIRECT(F14))","v":""},{"$f":"IF(INDIRECT(F39)=\"\",\"\",INDIRECT(F39))","v":""},{"$f":"IF(INDIRECT(F60)=\"\",\"\",INDIRECT(F60))","v":""},{"$f":"IF(INDIRECT(F89)=\"\",\"\",INDIRECT(F89))","v":""},null,"NoteList!A22"]
[{"$f":"IF(INDIRECT(F15)=\"\",\"\",INDIRECT(F15))","v":""},{"$f":"IF(INDIRECT(F40)=\"\",\"\",INDIRECT(F40))","v":""},{"$f":"IF(INDIRECT(F61)=\"\",\"\",INDIRECT(F61))","v":""},{"$f":"IF(INDIRECT(F90)=\"\",\"\",INDIRECT(F90))","v":""},null,"NoteList!A23"]
[{"$f":"IF(INDIRECT(F16)=\"\",\"\",INDIRECT(F16))","v":""},{"$f":"IF(INDIRECT(F41)=\"\",\"\",INDIRECT(F41))","v":""},{"$f":"IF(INDIRECT(F62)=\"\",\"\",INDIRECT(F62))","v":""},{"$f":"IF(INDIRECT(F91)=\"\",\"\",INDIRECT(F91))","v":""},null,"NoteList!A24"]
[{"$f":"IF(INDIRECT(F17)=\"\",\"\",INDIRECT(F17))","v":""},{"$f":"IF(INDIRECT(F42)=\"\",\"\",INDIRECT(F42))","v":""},{"$f":"IF(INDIRECT(F63)=\"\",\"\",INDIRECT(F63))","v":""},{"$f":"IF(INDIRECT(F92)=\"\",\"\",INDIRECT(F92))","v":""},null,"NoteList!A25"]
[{"$f":"IF(INDIRECT(F18)=\"\",\"\",INDIRECT(F18))","v":""},{"$f":"IF(INDIRECT(F43)=\"\",\"\",INDIRECT(F43))","v":""},{"$f":"IF(INDIRECT(F64)=\"\",\"\",INDIRECT(F64))","v":""},{"$f":"IF(INDIRECT(F93)=\"\",\"\",INDIRECT(F93))","v":""},null,"NoteList!A26"]
[{"$f":"IF(INDIRECT(F19)=\"\",\"\",INDIRECT(F19))","v":""},{"$f":"IF(INDIRECT(F44)=\"\",\"\",INDIRECT(F44))","v":""},{"$f":"IF(INDIRECT(F65)=\"\",\"\",INDIRECT(F65))","v":""},{"$f":"IF(INDIRECT(F94)=\"\",\"\",INDIRECT(F94))","v":""},null,"NoteList!A27"]
[{"$f":"IF(INDIRECT(F20)=\"\",\"\",INDIRECT(F20))","v":""},{"$f":"IF(INDIRECT(F45)=\"\",\"\",INDIRECT(F45))","v":""},{"$f":"IF(INDIRECT(F66)=\"\",\"\",INDIRECT(F66))","v":""},{"$f":"IF(INDIRECT(F95)=\"\",\"\",INDIRECT(F95))","v":""},null,"NoteList!A28"]
[{"$f":"IF(INDIRECT(F21)=\"\",\"\",INDIRECT(F21))","v":""},{"$f":"IF(INDIRECT(F46)=\"\",\"\",INDIRECT(F46))","v":""},{"$f":"IF(INDIRECT(F67)=\"\",\"\",INDIRECT(F67))","v":""},{"$f":"IF(INDIRECT(F96)=\"\",\"\",INDIRECT(F96))","v":""},null,"NoteList!A29"]
[{"$f":"IF(INDIRECT(F22)=\"\",\"\",INDIRECT(F22))","v":""},{"$f":"IF(INDIRECT(F47)=\"\",\"\",INDIRECT(F47))","v":""},{"$f":"IF(INDIRECT(F68)=\"\",\"\",INDIRECT(F68))","v":""},{"$f":"IF(INDIRECT(F97)=\"\",\"\",INDIRECT(F97))","v":""},null,"NoteList!A30"]
[{"$f":"IF(INDIRECT(F23)=\"\",\"\",INDIRECT(F23))","v":""},{"$f":"IF(INDIRECT(F48)=\"\",\"\",INDIRECT(F48))","v":""},{"$f":"IF(INDIRECT(F69)=\"\",\"\",INDIRECT(F69))","v":""},{"$f":"IF(INDIRECT(F98)=\"\",\"\",INDIRECT(F98))","v":""},null,"NoteList!A31"]
[{"$f":"IF(INDIRECT(F24)=\"\",\"\",INDIRECT(F24))","v":""},{"$f":"IF(INDIRECT(F49)=\"\",\"\",INDIRECT(F49))","v":""},{"$f":"IF(INDIRECT(F70)=\"\",\"\",INDIRECT(F70))","v":""},{"$f":"IF(INDIRECT(F99)=\"\",\"\",INDIRECT(F99))","v":""},null,"NoteList!A32"]
[{"$f":"IF(INDIRECT(F25)=\"\",\"\",INDIRECT(F25))","v":""},{"$f":"IF(INDIRECT(F50)=\"\",\"\",INDIRECT(F50))","v":""},{"$f":"IF(INDIRECT(F71)=\"\",\"\",INDIRECT(F71))","v":""},{"$f":"IF(INDIRECT(F100)=\"\",\"\",INDIRECT(F100))","v":""},null,"NoteList!A33"]
[null,null,null,null,null,"NoteList!A34"]
[null,null,null,null,null,"NoteList!A35"]
[null,null,null,null,null,"NoteList!A36"]
[null,null,null,null,null,"NoteList!A37"]
[null,null,null,null,null,"NoteList!A38"]
[null,null,null,null,null,"NoteList!A39"]
[null,null,null,null,null,"NoteList!A40"]
[null,null,null,null,null,"NoteList!A41"]
[null,null,null,null,null,"NoteList!A42"]
[null,null,null,null,null,"NoteList!A43"]
[null,null,null,null,null,"NoteList!A44"]
[null,null,null,null,null,"NoteList!A45"]
[null,null,null,null,null,"NoteList!A46"]
[null,null,null,null,null,"NoteList!A47"]
[null,null,null,null,null,"NoteList!A48"]
[null,null,null,null,null,"NoteList!A49"]
[null,null,null,null,null,"NoteList!A50"]
[null,null,null,null,null,"NoteList!A51"]
[null,null,null,null,null,"NoteList!A52"]
[null,null,null,null,null,"NoteList!A53"]
[null,null,null,null,null,"NoteList!A54"]
[null,null,null,null,null,"NoteList!A55"]
[null,null,null,null,null,"NoteList!A56"]
[null,null,null,null,null,"NoteList!A57"]
[null,null,null,null,null,"NoteList!A58"]
[null,null,null,null,null,"NoteList!A59"]
[null,null,null,null,null,"NoteList!A60"]
[null,null,null,null,null,"NoteList!A61"]
[null,null,null,null,null,"NoteList!A62"]
[null,null,null,null,null,"NoteList!A63"]
[null,null,null,null,null,"NoteList!A64"]
[null,null,null,null,null,"NoteList!A65"]
[null,null,null,null,null,"NoteList!A66"]
[null,null,null,null,null,"NoteList!A67"]
[null,null,null,null,null,"NoteList!A68"]
[null,null,null,null,null,"NoteList!A69"]
[null,null,null,null,null,"NoteList!A70"]
[null,null,null,null,null,"NoteList!A71"]
[null,null,null,null,null,"NoteList!A72"]
[null,null,null,null,null,"NoteList!A73"]
[null,null,null,null,null,"NoteList!A74"]
[null,null,null,null,null,"NoteList!A75"]
[null,null,null,null,null,"NoteList!A76"]
[null,null,null,null,null,"NoteList!A77"]
[null,null,null,null,null,"NoteList!A78"]
[null,null,null,null,null,"NoteList!A79"]
[null,null,null,null,null,"NoteList!A80"]
[null,null,null,null,null,"NoteList!A81"]
[null,null,null,null,null,"NoteList!A82"]
[null,null,null,null,null,"NoteList!A83"]
[null,null,null,null,null,"NoteList!A84"]
[null,null,null,null,null,"NoteList!A85"]
[null,null,null,null,null,"NoteList!A86"]
[null,null,null,null,null,"NoteList!A87"]
[null,null,null,null,null,"NoteList!A88"]
[null,null,null,null,null,"NoteList!A89"]
[null,null,null,null,null,"NoteList!A90"]
[null,null,null,null,null,"NoteList!A91"]
[null,null,null,null,null,"NoteList!A92"]
[null,null,null,null,null,"NoteList!A93"]
[null,null,null,null,null,"NoteList!A94"]
[null,null,null,null,null,"NoteList!A95"]
[null,null,null,null,null,"NoteList!A96"]
[null,null,null,null,null,"NoteList!A97"]
[null,null,null,null,null,"NoteList!A98"]
[null,null,null,null,null,"NoteList!A99"]
[null,null,null,null,null,"NoteList!A100"]
[null,null,null,null,null,"NoteList!A101"]
[null,null,null,null,null,"NoteList!A102"]
[null,null,null,null,null,"NoteList!A103"]
[null,null,null,null,null,"NoteList!A104"]
[null,null,null,null,null,"NoteList!A105"]
[null,null,null,null,null,"NoteList!A106"]
[null,null,null,null,null,"NoteList!A107"]
[null,null,null,null,null,"NoteList!A108"]
[null,null,null,null,null,"NoteList!A109"]